fUSD/lending_fUSD_20250526
["ID","MTS","AMOUNT","RATE_DAILY","PERIOD"]
[362378610,1748231432759,-1000.0,0.000199,2]
[362378611,1748231432769,-1000.0,0.000199,2]
[362378612,1748231432778,-1355.0,0.000199,2]
[362378613,1748231432788,-1000.0,0.000199,2]
[362378614,1748231432797,-1000.0,0.000199,2]
[362378615,1748231432806,-1000.0,0.000199,2]
[362378616,1748231432815,-9349.51431813,0.000199,2]
[362378617,1748231432825,-1562.83624367,0.000199,2]
[362378618,1748231432834,-1562.83624363,0.000199,2]
[362378619,1748231432845,-1290.0,0.000199,2]
[362378620,1748231432854,-1562.83624363,0.000199,2]
[362378621,1748231432863,-1562.83624363,0.000199,2]
[362378622,1748231432873,-183.86715225,0.000199,2]
[362378623,1748231432882,-1562.83624363,0.000199,2]
[362378624,1748231432891,-210.39893588,0.000199,2]
[362378625,1748231432901,-1562.83624363,0.000199,2]
[362378626,1748231432910,-1562.83624363,0.000199,2]
[362378627,1748231432919,-1562.83624363,0.000199,2]
[362378628,1748231432928,-1562.83624363,0.000199,2]
[362378629,1748231432938,-1562.83624363,0.000199,2]
[362378630,1748231432947,-1562.83624363,0.000199,2]
[362378631,1748231433162,-1562.83624363,0.000199,2]
[362378632,1748231433173,-1088.0,0.000199,2]
[362378633,1748231433182,-1562.83624363,0.000199,2]
[362378634,1748231433192,-1562.83624363,0.000199,2]
[362378635,1748231433202,-1562.83624363,0.000199,2]
[362378636,1748231433211,-1562.83624363,0.000199,2]
[362378637,1748231433221,-2405.052128,0.000199,2]
[362378638,1748231433230,-217.47218995,0.000199,2]
[362378639,1748231433240,-1562.83624363,0.000199,2]
[362378640,1748231433249,-1562.83624363,0.000199,2]
[362378641,1748231433259,-1562.83624363,0.000199,2]
[362378642,1748231433269,-1562.83624363,0.000199,2]
[362378643,1748231433279,-342.49825478,0.000199,2]
[362378644,1748231433289,-500.0,0.00019973,2]
[362378645,1748231433298,-341.50279314,0.00019973,2]
[362378646,1748231433308,-500.0,0.00019973,2]
[362378647,1748231433317,-500.0,0.00019973,2]
[362378648,1748231433327,-500.0,0.00019973,2]
[362378649,1748231433336,-500.0,0.00019973,2]
[362378650,1748231433345,-500.0,0.00019973,2]
[362378651,1748231433355,-152.7,0.0001999,2]
[362378652,1748231433365,-152.7,0.0001999,2]
[362378653,1748231433374,-152.7,0.0001999,2]
[362378654,1748231433384,-152.7,0.0001999,2]
[362378655,1748231433394,-152.7,0.0001999,2]
[362378656,1748231433404,-152.7,0.0001999,2]
[362378657,1748231433414,-5800.0,0.0001999,2]
[362378658,1748231433423,-184.87063242,0.00019994,2]
[362378659,1748231433433,-452.5456639,0.00019994,2]
[362378660,1748231433442,-272.26111145,0.00019994,2]
[362378661,1748231433451,-500.0,0.00019994,2]
[362378662,1748231433460,-500.0,0.00019994,2]
[362378663,1748231433470,-500.0,0.00019994,2]
[362378664,1748231433479,-500.0,0.00019994,2]
[362378665,1748231433488,-500.0,0.00019994,2]
[362378666,1748231433497,-500.0,0.00019994,2]
[362378667,1748231433507,-500.0,0.00019994,2]
[362378668,1748231433517,-500.0,0.00019994,2]
[362378669,1748231433526,-500.0,0.00019994,2]
[362378670,1748231433535,-500.0,0.00019994,2]
[362378671,1748231433544,-500.0,0.00019994,2]
[362378672,1748231433554,-399.05259634,0.00019994,2]
[362378673,1748231433563,-500.0,0.00019994,2]
[362378674,1748231433572,-550.0,0.00019994,2]
[362378675,1748231433581,-500.0,0.00019994,2]
[362378676,1748231433592,-500.0,0.00019994,2]
[362378677,1748231433601,-500.0,0.00019994,2]
[362378678,1748231433611,-420.0,0.00019994,2]
[362378679,1748231433620,-420.0,0.00019994,2]
[362378680,1748231433630,-422.57493356,0.00019994,2]
[362378681,1748231433638,-420.0,0.00019994,2]
[362378682,1748231433648,-420.0,0.00019994,2]
[362378683,1748231433657,-420.0,0.00019994,2]
[362378684,1748231433667,-420.0,0.00019994,2]
[362378685,1748231433676,-481.67384177,0.00019994,2]
[362378686,1748231433685,-420.0,0.00019994,2]
[362378687,1748231433695,-503.22608414,0.00019994,2]
[362378688,1748231433705,-420.0,0.00019994,2]
[362378689,1748231433716,-483.88503054,0.00019994,2]
[362378690,1748231433725,-151.0,0.00019995,2]
[362378691,1748231433734,-151.0,0.00019995,2]
[362378692,1748231433743,-869.2978951,0.00019995,2]
[362378693,1748231433753,-151.0,0.00019995,2]
[362378694,1748231433762,-18005.1465465,0.00019995,2]
[362378695,1748231433772,-192.970227,0.00019995,2]
[362378696,1748231433781,-192.970227,0.00019995,2]
[362378697,1748231433791,-16524.2471627,0.00019995,2]
[362378698,1748231433800,-1269.69769411,0.00019995,2]
[362378699,1748231434026,-65334.56987429,0.00019995,2]
[362378700,1748231434036,-4334.6052902,0.00019995,2]
[362378701,1748231434047,-26693.8139002,0.00019995,2]
[362378702,1748231434056,-5800.0,0.00019999,2]
[362378703,1748231434066,-420.0,0.00019999,2]
[362378704,1748231434075,-420.0,0.00019999,2]
[362378705,1748231434084,-420.0,0.00019999,2]
[362378706,1748231434093,-420.0,0.00019999,2]
[362378707,1748231434103,-199.98,0.00019999,2]
[362378708,1748231434112,-420.0,0.00019999,2]
[362378709,1748231434121,-420.0,0.00019999,2]
[362378710,1748231434131,-420.0,0.00019999,2]
[362378711,1748231434141,-550.39831052,0.00019999,2]
[362378712,1748231434150,-20000.0,0.00019999,2]
[362378713,1748231434160,-230977.15362479,0.0002,2]
[362378714,1748231434171,-35000.0,0.0002,2]
[362378715,1748231434183,-98756.52519019,0.0002,2]
[362378716,1748231434195,-7631.68448477,0.0002,2]
[362378717,1748231434206,-6000.0,0.0002,2]
[362378718,1748231434218,-1351.34433458,0.0002,2]
[362378719,1748231434229,-959.69674344,0.0002,2]
[362378720,1748231434253,-1712.9407238,0.0002,2]
[362378721,1748231434265,-827.87084126,0.0002,2]
[362378722,1748231434280,-4318.92176032,0.0002,2]
[362378723,1748231434291,-2882.2046326,0.0002,2]
[362378725,1748231437511,-300.0,0.00019798,2]
[362378726,1748231437522,-195.60040943,0.000199,2]
[362378727,1748231437532,-420.0,0.00019994,2]
[362378728,1748231437541,-464.12665935,0.00019994,2]
[362378729,1748231437550,-484.42310362,0.00019994,2]
[362378730,1748231437560,-6563.77533591,0.0002,2]
[362378731,1748231437571,-779.54,0.0002,2]
[362378732,1748231437582,-1103.78704119,0.0002,2]
[362378733,1748231437593,-496.59,0.0002,2]
[362378734,1748231437622,-1383.51480054,0.0002,2]
[362378735,1748231437689,-65700.08825703,0.0002,2]
[362378736,1748231437700,-3665.54793744,0.0002,2]
[362378737,1748231437711,-7428.45799445,0.0002,2]
[362378762,1748231439555,-442.53602409,0.00019899,2]
[362378764,1748231439564,-88.80162644,0.0002,2]
[362378767,1748231439576,-984511.45425814,0.0002,2]
[362378769,1748231439585,-7063.36227829,0.0002,5]
[362378771,1748231439595,-396.0,0.0002,2]
[362378773,1748231439604,-396.0,0.0002,2]
[362378775,1748231439614,-396.0,0.0002,2]
[362378777,1748231439623,-396.0,0.0002,2]
[362378778,1748231439633,-396.0,0.0002,2]
[362378780,1748231439642,-396.0,0.0002,2]
[362378783,1748231439652,-396.0,0.0002,2]
[362378785,1748231439662,-396.0,0.0002,2]
[362378787,1748231439671,-396.0,0.0002,2]
[362378789,1748231439680,-396.0,0.0002,2]
[362378791,1748231439689,-210.0,0.0002,2]
[362378792,1748231439699,-210.0,0.0002,2]
[362378794,1748231439709,-210.0,0.0002,2]
[362378797,1748231439721,-210.0,0.0002,2]
[362378799,1748231439731,-210.0,0.0002,2]
[362378801,1748231439741,-210.0,0.0002,2]
[362378803,1748231439750,-210.0,0.0002,2]
[362378805,1748231439759,-210.0,0.0002,2]
[362378807,1748231439769,-210.0,0.0002,2]
[362378809,1748231439779,-210.0,0.0002,2]
[362378811,1748231439788,-339724.06536184,0.0002,2]
[362378814,1748231439810,-9303.7276782,0.0002,2]
[362378816,1748231439822,-40622.3277096,0.0002,2]
[362378818,1748231439833,-27319.16052213,0.0002,2]
[362378829,1748231439926,-2239.99555988,0.0002,2]
[362378831,1748231439939,-333.81892786,0.0002,2]
[362378836,1748231439981,-11324.75706141,0.0002,2]
[362379035,1748231442612,-485.12242683,0.00019994,2]
[362379036,1748231442622,-27357.70441001,0.0002,2]
[362379041,1748231445590,-445.58367448,0.00019899,2]
[362379042,1748231445601,-19510.063056,0.0002,2]
[362379043,1748231445696,-3690.75665532,0.0002,2]
[362379044,1748231445803,-1327.7008,0.0002,2]
[362379045,1748231445815,-51462.31402235,0.0002,2]
[362379046,1748231445848,-21351.928524,0.0002,2]
[362379047,1748231445914,-2345.746228,0.0002,2]
[362379052,1748231454858,-1468.93337338,0.0002,2]
[362379053,1748231456501,250.0,0.00015,2]
[362379054,1748231485463,208.0,0.0001638,2]
[362379055,1748231485809,208.0,0.0001596,2]
[362379056,1748231485845,-190.13430475,0.0001679,2]
[362379057,1748231486087,208.0,0.0001555,2]
[362379058,1748231490150,-17.86569525,0.0001679,2]
[362379069,1748232178472,363.18,0.00013699,2]
[362379070,1748232279643,1336.3,0.00016477,2]
[362379093,1748232631647,-300.0,0.00017,2]
[362379094,1748232631658,-260.18018105,0.00017,2]
[362379095,1748232631668,-29.81982895,0.0001721,2]
[362379096,1748232631679,-178.18017105,0.0001721,2]
[362379097,1748232631689,-208.0,0.00017436,2]
[362379098,1748232631698,-208.0,0.0001762,2]
[362379099,1748232631709,-263.0,0.00017973,2]
[362379100,1748232631718,-208.0,0.0001803,2]
[362379101,1748232631727,-164.27,0.00018314,2]
[362379102,1748232631737,-208.0,0.0001845,2]
[362379103,1748232631748,-168.58,0.00018491,2]
[362379104,1748232631758,-159.94,0.00018629,2]
[362379105,1748232631767,-189.51,0.00018633,2]
[362379106,1748232631776,-1119.51982895,0.00018639,2]
[362379109,1748232636390,-80.48017105,0.00018639,2]
[362379110,1748232636400,-300.0,0.00018639,2]
[362379111,1748232636410,-26.51982895,0.0001864,2]
[362379112,1748232636421,-398.0,0.0001864,2]
[362379113,1748232636445,-2760.94600868,0.0001864,2]
[362379114,1748232636456,-1247.11792128,0.0001864,2]
[362379115,1748232636467,-1879.19525318,0.0001864,2]
[362379116,1748232636479,-803.22642329,0.0001864,2]
[362379117,1748232636491,-2211.39474624,0.0001864,2]
[362379118,1748232636503,-1342.01906685,0.0001864,2]
[362379119,1748232636515,-434.94,0.0001864,2]
[362379120,1748232636526,-2050.53056649,0.0001864,2]
[362379121,1748232636538,-28309.09176525,0.0001864,2]
[362379122,1748232636548,-2885.70076645,0.0001865,2]
[362379123,1748232636559,-407.114424,0.0001865,2]
[362379124,1748232636578,-889.47953264,0.0001865,2]
[362379125,1748232636594,-515.28991249,0.0001865,2]
[362379126,1748232636605,-5230.68311874,0.0001865,2]
[362379127,1748232636616,-23274.66432121,0.0001865,2]
[362379128,1748232636674,-632.6225661,0.0001865,2]
[362379129,1748232636686,-19485.34629592,0.0001865,2]
[362379130,1748232636698,-1548.82199699,0.0001865,2]
[362379131,1748232636710,-2937.37850542,0.0001865,2]
[362379132,1748232636721,-594.95549248,0.0001865,2]
[362379147,1748232637518,-876.49937008,0.0001865,2]
[362379148,1748232637530,-8695.33159424,0.0001865,2]
[362379149,1748232637570,-356.81517853,0.0001865,2]
[362379150,1748232637583,-468.40396298,0.0001865,2]
[362379151,1748232637596,-380.94205241,0.0001865,2]
[362379152,1748232637677,-12650.48090932,0.0001865,2]
[362379153,1748232637687,-500.0,0.000187,2]
[362379154,1748232637696,-250.0,0.000187,2]
[362379155,1748232637707,-150.0,0.00018723,7]
[362379156,1748232637717,-1336.3,0.00018741,2]
[362379157,1748232637730,-208.0,0.0001886,2]
[362379158,1748232637741,-203.38563794,0.000189,2]
[362379159,1748232637753,-151.0,0.00018997,2]
[362379160,1748232637763,-207.4,0.00018997,2]
[362379161,1748232637773,-350.0,0.00019,2]
[362379162,1748232637783,-43982.87673742,0.00019,2]
[362379163,1748232637794,-424.538785,0.00019,2]
[362379164,1748232637806,-10050.43970292,0.00019,2]
[362379165,1748232637817,-15314.25217148,0.00019,2]
[362379167,1748232639768,-410.84697194,0.00019,2]
[362379168,1748232639874,-2188.6,0.00019,2]
[362379169,1748232639981,-678.89044225,0.00019,2]
[362379170,1748232639993,-10402.55518899,0.00019,2]
[362379171,1748232640003,-500.0,0.00019164,2]
[362379172,1748232640013,-500.0,0.00019164,2]
[362379173,1748232640023,-169.13,0.00019178,2]
[362379174,1748232640034,-150.46,0.00019178,2]
[362379175,1748232640045,-670.11353896,0.00019208,2]
[362379176,1748232640054,-1000.0,0.00019248,2]
[362379177,1748232640064,-210.0,0.0001928,2]
[362379178,1748232640075,-208.0,0.0001928,2]
[362379179,1748232640085,-6598.73671627,0.00019281,2]
[362379180,1748232640094,-557.80086312,0.00019349,2]
[362379181,1748232640104,-190.58277801,0.00019349,2]
[362379182,1748232640114,-500.0,0.00019349,2]
[362379183,1748232640124,-500.0,0.00019349,2]
[362379184,1748232640135,-500.0,0.00019349,2]
[362379185,1748232640145,-500.0,0.00019349,2]
[362379186,1748232640155,-500.0,0.00019349,2]
[362379187,1748232640164,-500.0,0.00019349,2]
[362379188,1748232640174,-500.0,0.00019349,2]
[362379189,1748232640185,-500.0,0.00019349,2]
[362379190,1748232640196,-500.0,0.00019349,2]
[362379191,1748232640208,-395.60770863,0.00019349,2]
[362379192,1748232640218,-500.0,0.00019349,2]
[362379193,1748232640228,-6598.73671626,0.0001935,2]
[362379194,1748232640238,-166.05,0.00019381,2]
[362379195,1748232640249,-5562.0,0.000194,3]
[362379196,1748232640259,-6598.73671626,0.00019419,2]
[362379197,1748232640270,-6598.73671626,0.00019487,2]
[362379198,1748232640279,-670.11353896,0.00019496,2]
[362379199,1748232640289,-6598.73671626,0.00019556,2]
[362379200,1748232640299,-1612.77,0.00019589,2]
[362379201,1748232640308,-500.0,0.00019589,2]
[362379202,1748232640318,-443.402109,0.00019599,2]
[362379203,1748232640327,-203.38563792,0.00019624,2]
[362379204,1748232640337,-6598.73671626,0.00019625,2]
[362379205,1748232640346,-1153.0,0.00019648,2]
[362379206,1748232640355,-154.0,0.00019648,2]
[362379207,1748232640365,-6920.0,0.00019648,2]
[362379208,1748232640374,-4059.0,0.00019648,2]
[362379209,1748232640383,-858.832,0.00019648,2]
[362379210,1748232640393,-210.0,0.0001969,2]
[362379211,1748232640402,-208.0,0.0001969,2]
[362379212,1748232640411,-6598.73671626,0.00019694,2]
[362379213,1748232640421,-500.0,0.00019699,2]
[362379214,1748232640431,-5562.0,0.000197,5]
[362379215,1748232640440,-150.0,0.00019704,2]
[362379216,1748232640449,-150.0,0.0001971,2]
[362379217,1748232640459,-150.0,0.0001971,2]
[362379218,1748232640468,-150.0,0.00019712,2]
[362379219,1748232640478,-150.0,0.00019713,2]
[362379220,1748232640488,-150.0,0.00019718,2]
[362379221,1748232640498,-150.0,0.00019723,2]
[362379222,1748232640507,-150.0,0.00019723,2]
[362379223,1748232640516,-150.0,0.00019724,2]
[362379224,1748232640526,-150.0,0.00019725,2]
[362379225,1748232640535,-150.46,0.00019726,2]
[362379226,1748232640545,-340.19,0.00019726,2]
[362379227,1748232640555,-150.0,0.00019727,2]
[362379228,1748232640565,-150.0,0.00019728,2]
[362379229,1748232640574,-150.0,0.00019732,2]
[362379230,1748232640586,-150.0,0.00019732,2]
[362379231,1748232640599,-150.0,0.00019732,2]
[362379232,1748232640610,-150.0,0.00019733,2]
[362379233,1748232640619,-150.0,0.00019735,2]
[362379234,1748232640630,-152.76377487,0.00019736,2]
[362379235,1748232640639,-1000.0,0.0001974,2]
[362379236,1748232640649,-150.0,0.00019743,2]
[362379237,1748232640659,-150.0,0.00019744,2]
[362379238,1748232640669,-150.0,0.00019744,2]
[362379239,1748232640679,-150.0,0.00019748,2]
[362379240,1748232640688,-150.0,0.00019748,2]
[362379241,1748232640697,-150.0,0.0001975,2]
[362379242,1748232640707,-150.0,0.00019751,2]
[362379243,1748232640716,-150.0,0.00019754,2]
[362379244,1748232640725,-150.0,0.00019755,2]
[362379245,1748232640735,-150.0,0.00019756,2]
[362379246,1748232640744,-150.0,0.00019756,2]
[362379247,1748232640754,-150.0,0.00019757,2]
[362379248,1748232640763,-6598.73671626,0.00019762,2]
[362379249,1748232640773,-1000.0,0.00019763,2]
[362379250,1748232640783,-150.0,0.00019764,2]
[362379251,1748232640792,-150.0,0.00019764,2]
[362379252,1748232640801,-150.0,0.0001977,2]
[362379253,1748232640811,-150.0,0.00019774,2]
[362379254,1748232640820,-1000.0,0.0001978,2]
[362379255,1748232640830,-300.0,0.00019783,2]
[362379256,1748232640840,-150.0,0.00019784,2]
[362379257,1748232640849,-1000.0,0.0001979,2]
[362379258,1748232640858,-150.0,0.00019791,2]
[362379259,1748232640868,-183.36677214,0.00019791,2]
[362379260,1748232640877,-150.0,0.00019795,2]
[362379261,1748232640887,-420.0,0.00019795,2]
[362379262,1748232640896,-420.0,0.00019795,2]
[362379263,1748232640906,-420.0,0.00019795,2]
[362379264,1748232640915,-420.0,0.00019795,2]
[362379265,1748232640923,-420.89405291,0.00019795,2]
[362379266,1748232640933,-420.0,0.00019795,2]
[362379267,1748232640942,-420.82211172,0.00019795,2]
[362379268,1748232640951,-420.0,0.00019795,2]
[362379269,1748232640961,-491.62110552,0.00019795,2]
[362379270,1748232640970,-1435.54980128,0.00019796,2]
[362379271,1748232640979,-1000.0,0.00019797,2]
[362379272,1748232640989,-150.0,0.00019797,2]
[362379273,1748232640999,-1000.0,0.00019799,2]
[362379274,1748232641008,-2507.64948906,0.000198,2]
[362379275,1748232641018,-150.0,0.00019801,2]
[362379276,1748232641027,-1000.0,0.00019805,2]
[362379277,1748232641036,-150.0,0.00019807,2]
[362379278,1748232641046,-150.0,0.00019809,2]
[362379279,1748232641055,-150.0,0.00019812,2]
[362379280,1748232641064,-150.0,0.00019813,2]
[362379281,1748232641073,-158.9609818,0.00019814,2]
[362379282,1748232641082,-150.0,0.00019817,2]
[362379283,1748232641092,-150.0,0.00019817,2]
[362379284,1748232641101,-150.0,0.00019817,2]
[362379285,1748232641111,-1000.0,0.00019818,2]
[362379286,1748232641120,-150.0,0.0001982,2]
[362379287,1748232641129,-1000.0,0.00019821,2]
[362379288,1748232641139,-1000.0,0.00019823,2]
[362379289,1748232641148,-150.0,0.00019827,2]
[362379290,1748232641157,-150.0,0.00019827,2]
[362379291,1748232641168,-150.0,0.0001983,2]
[362379292,1748232641178,-6598.73671626,0.00019831,2]
[362379293,1748232641187,-200.0,0.0001984,2]
[362379294,1748232641195,-150.0,0.0001984,2]
[362379295,1748232641204,-150.0,0.00019842,2]
[362379296,1748232641213,-670.11353897,0.00019842,2]
[362379297,1748232641221,-150.0,0.00019843,2]
[362379298,1748232641230,-150.0,0.00019843,2]
[362379299,1748232641238,-150.0,0.00019847,2]
[362379300,1748232641247,-150.0,0.00019847,2]
[362379301,1748232641255,-1000.0,0.00019857,2]
[362379302,1748232641264,-1000.0,0.00019857,2]
[362379303,1748232641274,-543.08,0.00019864,2]
[362379304,1748232641284,-552.95882816,0.00019864,2]
[362379305,1748232641294,-150.0,0.00019865,2]
[362379306,1748232641304,-150.0,0.00019865,2]
[362379307,1748232641314,-150.0,0.00019871,2]
[362379308,1748232641324,-150.0,0.00019877,2]
[362379309,1748232641333,-150.0,0.00019882,2]
[362379310,1748232641342,-1173.617,0.00019883,2]
[362379311,1748232641352,-183.023,0.00019883,2]
[362379312,1748232641361,-150.0,0.00019884,2]
[362379313,1748232641371,-150.0,0.00019885,2]
[362379314,1748232641381,-150.0,0.00019886,2]
[362379315,1748232641390,-150.0,0.0001989,2]
[362379316,1748232641400,-150.0,0.00019893,2]
[362379317,1748232641409,-1000.0,0.00019894,2]
[362379318,1748232641418,-1000.0,0.00019895,2]
[362379319,1748232641430,-150.0,0.00019896,2]
[362379320,1748232641440,-150.0,0.00019897,2]
[362379321,1748232641450,-183.86715225,0.00019899,2]
[362379322,1748232641460,-500.0,0.00019899,2]
[362379323,1748232641470,-434.04335348,0.00019899,2]
[362379324,1748232641479,-502.3895125,0.00019899,2]
[362379325,1748232641488,-448.26066792,0.00019899,2]
[362379326,1748232641498,-468.67081381,0.00019899,2]
[362379327,1748232641508,-569.25791759,0.00019899,2]
[362379328,1748232641517,-420.0,0.00019899,2]
[362379329,1748232641526,-420.0,0.00019899,2]
[362379330,1748232641536,-519.56273902,0.00019899,2]
[362379331,1748232641546,-420.0,0.00019899,2]
[362379332,1748232641556,-420.0,0.00019899,2]
[362379333,1748232641566,-420.0,0.00019899,2]
[362379334,1748232641576,-420.0,0.00019899,2]
[362379335,1748232641588,-420.0,0.00019899,2]
[362379336,1748232641598,-444.23656186,0.00019899,2]
[362379337,1748232641608,-420.0,0.00019899,2]
[362379338,1748232641618,-492.35553471,0.00019899,2]
[362379339,1748232641628,-420.0,0.00019899,2]
[362379340,1748232641639,-504.83449712,0.00019899,2]
[362379341,1748232641648,-420.0,0.00019899,2]
[362379342,1748232641660,-168.6355395,0.000199,2]
[362379343,1748232641671,-150.0,0.000199,2]
[362379344,1748232641686,-6598.73671626,0.000199,2]
[362379345,1748232641696,-228.33216986,0.000199,2]
[362379346,1748232641706,-1603.36808534,0.000199,2]
[362379347,1748232641721,-150.0,0.00019901,2]
[362379348,1748232641729,-150.0,0.00019905,2]
[362379349,1748232641737,-1000.0,0.00019908,2]
[362379350,1748232641746,-150.0,0.00019914,2]
[362379351,1748232641761,-150.0,0.00019915,2]
[362379352,1748232641771,-150.0,0.00019916,2]
[362379353,1748232641779,-1035.51001284,0.00019918,2]
[362379354,1748232641788,-150.0,0.00019928,2]
[362379355,1748232641798,-1000.0,0.00019935,2]
[362379356,1748232641808,-150.0,0.00019939,2]
[362379357,1748232641817,-985.04066658,0.00019939,2]
[362379358,1748232641828,-150.0,0.00019944,2]
[362379359,1748232641838,-150.0,0.00019945,2]
[362379360,1748232641848,-150.0,0.00019948,2]
[362379361,1748232641858,-150.0,0.00019949,2]
[362379362,1748232641867,-150.0,0.00019949,2]
[362379363,1748232641876,-150.0,0.00019949,2]
[362379364,1748232641885,-1000.0,0.0001996,2]
[362379365,1748232641895,-150.0,0.0001996,2]
[362379366,1748232641904,-150.0,0.00019961,2]
[362379367,1748232641916,-150.0,0.00019968,2]
[362379368,1748232641926,-150.0,0.0001997,2]
[362379369,1748232641938,-500.74309648,0.00019973,2]
[362379370,1748232641948,-500.0,0.00019973,2]
[362379371,1748232641957,-515.43078265,0.00019973,2]
[362379372,1748232641967,-500.0,0.00019973,2]
[362379373,1748232641977,-500.0,0.00019973,2]
[362379374,1748232641986,-500.0,0.00019973,2]
[362379375,1748232641996,-150.0,0.00019973,2]
[362379376,1748232642005,-500.0,0.00019973,2]
[362379377,1748232642015,-150.0,0.00019973,2]
[362379378,1748232642034,-150.0,0.00019976,2]
[362379379,1748232642054,-1000.0,0.00019977,2]
[362379380,1748232642071,-150.0,0.00019977,2]
[362379381,1748232642088,-500.0,0.0001998,2]
[362379382,1748232642099,-210.46197781,0.00019994,2]
[362379383,1748232642116,-420.0,0.00019994,2]
[362379384,1748232642128,-420.0,0.00019994,2]
[362379385,1748232642137,-420.0,0.00019994,2]
[362379386,1748232642147,-420.0,0.00019994,2]
[362379387,1748232642156,-240.49,0.00019994,2]
[362379388,1748232642167,-420.0,0.00019994,2]
[362379389,1748232642177,-472.08068259,0.00019994,2]
[362379390,1748232642186,-420.0,0.00019994,2]
[362379391,1748232642196,-420.0,0.00019994,2]
[362379392,1748232642205,-476.66428966,0.00019994,2]
[362379393,1748232642215,-420.0,0.00019994,2]
[362379394,1748232642225,-490.03698538,0.00019994,2]
[362379395,1748232642235,-452.75041582,0.00019994,2]
[362379396,1748232642244,-452.52958551,0.00019994,2]
[362379397,1748232642254,-485.42044095,0.00019994,2]
[362379398,1748232642264,-447.79170111,0.00019994,2]
[362379399,1748232642273,-428.00873656,0.00019994,2]
[362379400,1748232642283,-352.17869603,0.00019994,2]
[362379401,1748232642292,-432.36711005,0.00019994,2]
[362379402,1748232642302,-544.42306009,0.00019994,2]
[362379403,1748232642311,-476.30787986,0.00019994,2]
[362379404,1748232642321,-420.0,0.00019994,2]
[362379405,1748232642331,-464.45100986,0.00019994,2]
[362379406,1748232642340,-448.26639161,0.00019994,2]
[362379407,1748232642350,-449.91434779,0.00019994,2]
[362379408,1748232642360,-432.98333033,0.00019994,2]
[362379409,1748232642369,-420.0,0.00019994,2]
[362379410,1748232642379,-420.0,0.00019994,2]
[362379412,1748232642388,-436.05417063,0.00019994,2]
[362379413,1748232642398,-420.0,0.00019994,2]
[362379414,1748232642407,-420.0,0.00019994,2]
[362379415,1748232642417,-430.35623554,0.00019994,2]
[362379416,1748232642427,-420.0,0.00019994,2]
[362379417,1748232642630,-441.26369032,0.00019994,2]
[362379418,1748232642640,-428.08920239,0.00019994,2]
[362379419,1748232642649,-432.3573644,0.00019994,2]
[362379420,1748232642660,-420.0,0.00019994,2]
[362379421,1748232642669,-427.75861846,0.00019994,2]
[362379422,1748232642679,-460.72516754,0.00019994,2]
[362379423,1748232642688,-433.72059028,0.00019994,2]
[362379424,1748232642697,-420.0,0.00019994,2]
[362379425,1748232642706,-441.57861787,0.00019994,2]
[362379426,1748232642713,-420.0,0.00019994,2]
[362379427,1748232642721,-432.42816972,0.00019994,2]
[362379428,1748232642729,-450.63840925,0.00019994,2]
[362379429,1748232642737,-420.0,0.00019994,2]
[362379430,1748232642745,-440.51243059,0.00019994,2]
[362379431,1748232642754,-420.0,0.00019994,2]
[362379432,1748232642762,-456.35941997,0.00019994,2]
[362379433,1748232642770,-435.41877038,0.00019994,2]
[362379434,1748232642780,-312.6779967,0.00019994,2]